bitfinex/quotes_SOLUSD_20250821
["timestamp","ask_amount","ask_price","bid_price","bid_amount"]
[1755764823619,3.7801608,186.53,186.49,0.09]
[1755764824550,0.14216157,186.59,186.49,0.03]
[1755764824714,3.7801608,186.55,186.52,0.09]
[1755764824920,3.7801608,186.55,186.52,0.03]
[1755764826049,3.7801608,186.54,186.52,0.03]
[1755764826650,3.7801608,186.53,186.52,0.03]
[1755764827554,4.4401608,186.53,186.52,0.03]
[1755764827854,3.7801608,186.53,186.52,0.03]
[1755764829760,0.66,186.55,186.52,0.03]
[1755764829939,3.7801608,186.53,186.52,0.03]
[1755764831534,4.4401608,186.53,186.52,0.03]
[1755764832948,18.03575481,186.53,186.52,0.03]
[1755764833245,59.75575481,186.53,186.52,0.03]
[1755764834442,46.1601608,186.53,186.52,0.03]
[1755764835048,30.4401608,186.53,186.52,0.03]
[1755764835243,72.1601608,186.53,186.52,0.03]
[1755764835664,85.75575481,186.53,186.52,0.03]
[1755764837269,86.04007795,186.53,186.52,0.03]
[1755764839586,3.7801608,186.57,186.52,0.03]
[1755764839754,3.7801608,186.53,186.52,0.03]
[1755764840071,3.7801608,186.54,186.52,0.03]
[1755764840673,41.72,186.56,186.52,0.03]
[1755764840845,41.72,186.56,186.52,0.09]
[1755764841043,3.7801608,186.55,186.52,0.09]
[1755764842669,41.72,186.56,186.53,0.06]
[1755764842890,0.06,186.58,186.53,0.06]
[1755764843188,3.7801608,186.57,186.53,0.06]
[1755764844292,3.7801608,186.56,186.52,0.03]
[1755764844581,3.7801608,186.56,186.52,0.09]
[1755764845573,4.4601608,186.55,186.52,0.03]
[1755764845760,4.4601608,186.54,186.52,0.03]
[1755764846156,0.68,186.54,186.52,0.03]
[1755764846572,0.68,186.53,186.52,0.03]
[1755764847154,4.4601608,186.55,186.52,0.03]
[1755764847585,3.7801608,186.55,186.52,0.03]
[1755764847950,0.68,186.54,186.52,0.03]
[1755764848377,0.06,186.58,186.52,0.03]
[1755764848378,4.4601608,186.53,186.52,0.03]
[1755764849165,26.0,186.56,186.52,0.03]
[1755764849386,3.7801608,186.55,186.52,0.03]
[1755764850197,4.4601608,186.55,186.52,0.03]
[1755764850487,0.74,186.58,186.54,3.7801608]
[1755764850858,0.74,186.58,186.55,3.7801608]
[1755764851283,0.06,186.58,186.55,3.7801608]
[1755764851598,0.06,186.58,186.54,3.7801608]
[1755764852386,0.06,186.58,186.55,3.7801608]
[1755764852871,3.7801608,186.56,186.52,0.03]
[1755764853076,0.68,186.55,186.52,0.03]
[1755764853594,4.4601608,186.55,186.52,0.03]
[1755764853973,0.68,186.54,186.52,0.03]
[1755764854497,4.4601608,186.56,186.52,0.03]
[1755764854870,0.68,186.56,186.52,0.03]
[1755764855070,0.68,186.55,186.52,0.03]
[1755764855780,0.68,186.54,186.52,0.03]
[1755764856773,4.4601608,186.56,186.52,0.03]
[1755764857093,0.68,186.55,186.52,0.03]
[1755764857574,0.68,186.54,186.52,0.03]
[1755764858599,4.4601608,186.53,186.52,0.03]
[1755764859488,4.4601608,186.53,186.51,0.03]
[1755764859489,26.0,186.52,186.51,0.03]
[1755764859704,44.05575481,186.52,186.51,0.03]
[1755764861498,30.4601608,186.52,186.51,0.03]
[1755764863414,4.4601608,186.52,186.51,0.03]
[1755764863618,3.7801608,186.53,186.51,0.03]
[1755764863911,4.4601608,186.52,186.51,0.03]
[1755764865544,18.05575481,186.52,186.51,0.03]
[1755764865746,44.05575481,186.52,186.51,0.03]
[1755764867749,44.34007795,186.52,186.51,0.03]
[1755764871533,44.40007795,186.52,186.51,0.03]
[1755764872827,86.08007795,186.52,186.51,0.03]
[1755764874153,60.08007795,186.52,186.51,0.03]
[1755764875936,62.87744875,186.52,186.51,0.03]
[1755764877950,88.87744875,186.52,186.51,0.03]
[1755764878866,21.19744875,186.52,186.51,0.03]
[1755764879032,62.87744875,186.52,186.51,0.03]
[1755764879235,62.59312561,186.52,186.51,0.03]
[1755764880723,61.91312561,186.52,186.51,0.03]
[1755764881852,62.57312561,186.52,186.51,0.03]
[1755764882663,41.74,186.52,186.51,0.03]
[1755764882963,0.06,186.52,186.51,0.03]
[1755764888878,4.5001608,186.52,186.51,0.03]
[1755764889042,59.75575481,186.52,186.51,0.03]
[1755764891253,41.72,186.52,186.51,0.03]
[1755764891460,45.5001608,186.52,186.51,0.03]
[1755764892057,46.1601608,186.52,186.51,0.03]
[1755764892976,45.5001608,186.52,186.51,0.03]
[1755764893156,46.1601608,186.52,186.51,0.03]
[1755764893847,45.5001608,186.52,186.51,0.03]
[1755764894051,0.06,186.52,186.51,0.03]
[1755764894564,4.5001608,186.52,186.51,0.03]
[1755764894767,3.8401608,186.52,186.51,0.03]
[1755764895773,4.5001608,186.52,186.51,0.03]
[1755764896277,3.8401608,186.52,186.51,0.03]
[1755764897285,0.06,186.52,186.51,0.03]
[1755764897778,4.5001608,186.52,186.51,0.03]
[1755764898156,3.8401608,186.52,186.51,0.03]
[1755764898482,0.06,186.52,186.51,0.12]
[1755764898682,0.06,186.52,186.51,0.03]
[1755764899481,0.06,186.52,186.51,0.12]
[1755764900253,0.06,186.52,186.51,0.03]
[1755764900658,0.06,186.52,186.51,3.9001608]
[1755764904303,0.06,186.52,186.51,0.03]
[1755764904466,0.06,186.52,186.51,3.8101608]
[1755764906587,0.06,186.52,186.51,3.9001608]
[1755764907264,0.06,186.52,186.51,6.0493698]
[1755764908387,0.06,186.52,186.51,6.33369294]
[1755764913603,0.06,186.52,186.51,5.9593698]
[1755764914986,0.06,186.52,186.51,2.179209]
[1755764915190,0.06,186.52,186.51,5.9593698]
[1755764915382,0.72,186.52,186.51,2.179209]
[1755764915688,0.72,186.52,186.51,0.03]
[1755764916399,0.06,186.52,186.51,0.03]
[1755764917265,0.72,186.52,186.51,0.03]
[1755764918469,0.06,186.52,186.51,0.03]
[1755764919995,0.06,186.52,186.51,2.179208]
[1755764920302,0.72,186.52,186.51,0.03]
[1755764920677,0.06,186.52,186.51,0.03]
[1755764921197,0.72,186.52,186.51,0.03]
[1755764923100,0.06,186.52,186.51,0.03]
[1755764923496,0.72,186.52,186.51,0.03]
[1755764925982,0.06,186.52,186.51,0.03]
[1755764926176,0.06,186.52,186.51,26.03]
[1755764926499,0.06,186.52,186.51,28.179209]
[1755764928187,0.72,186.52,186.51,28.179209]
[1755764928497,0.72,186.52,186.51,2.179209]
[1755764928886,0.72,186.52,186.51,0.03]
[1755764943934,14.31559401,186.52,186.51,0.03]
[1755764946618,0.72,186.52,186.51,0.03]
[1755764950418,0.06,186.52,186.51,0.03]
[1755764950612,0.75,186.52,186.51,0.03]
[1755764955501,14.34559401,186.52,186.5,0.03]
[1755764955704,13.59559401,186.51,186.5,0.03]
[1755764956009,14.28559401,186.51,186.5,0.03]
[1755764956210,0.69,186.51,186.5,0.03]
[1755764956736,0.69,186.51,186.49,0.03]
[1755764956737,16.09,186.49,186.32,0.1]
[1755764956933,13.59559401,186.2,186.14,4.22372877]
[1755764957139,26.0,186.17,186.12,0.67]
[1755764957322,3.94711494,186.16,186.12,0.67]
[1755764957627,13.59559401,186.14,186.13,0.67]
[1755764957829,0.28432314,186.18,186.13,0.67]
[1755764958051,0.28432314,186.18,186.11,0.67]
[1755764958052,13.59559401,186.16,186.11,0.67]
[1755764958254,0.69,186.16,186.1,13.595594]
[1755764958556,3.54085727,186.15,186.1,13.595594]
[1755764958851,3.54085727,186.15,186.11,0.67]
[1755764959052,3.93406975,186.14,186.11,0.67]
[1755764959228,3.93406975,186.13,186.1,13.595594]
[1755764959427,7.8572201,186.12,186.09,43.56]
[1755764959629,3.93406975,186.11,186.09,47.49407]
[1755764959850,7.85695455,186.1,186.09,47.49407]
[1755764960052,3.9228848,186.1,186.09,48.16407]
[1755764960257,3.9228848,186.1,186.09,47.49407]
[1755764960426,31.92003693,186.2,186.09,48.16407]
[1755764960427,4.46423685,186.16,186.09,48.16407]
[1755764960628,3.52302929,186.15,186.1,0.67]
[1755764960827,3.52302929,186.14,186.11,0.67]
[1755764961070,3.52302929,186.13,186.11,0.67]
[1755764961239,3.52302929,186.12,186.11,0.67]
[1755764961741,1.91244914,186.12,186.11,44.21]
[1755764961941,13.59559401,186.17,186.11,44.21]
[1755764963534,14.25559401,186.17,186.09,4.64407]
[1755764963852,14.25559401,186.17,186.1,43.54]
[1755764964752,0.66,186.16,186.11,43.52]
[1755764964954,0.66,186.15,186.11,43.52]
[1755764965856,13.59559401,186.17,186.12,0.71]
[1755764966357,13.59559401,186.18,186.13,0.71]
[1755764966653,4.46423685,186.19,186.14,43.5]
[1755764966654,0.66,186.17,186.14,43.5]
[1755764966958,4.46423685,186.18,186.14,43.5]
[1755764967257,13.59559401,186.21,186.15,0.71]
[1755764967454,13.59559401,186.22,186.15,0.71]
[1755764967660,13.59559401,186.22,186.16,43.54]
[1755764967860,31.12423685,186.23,186.16,43.54]
[1755764968033,0.66,186.23,186.16,57.845594]
[1755764968230,4.46423685,186.24,186.17,0.71]
[1755764968429,18.71983086,186.25,186.17,0.71]
[1755764968635,13.59559401,186.24,186.17,0.71]
[1755764969255,0.66,186.23,186.16,13.595594]
[1755764969573,0.66,186.23,186.17,44.25]
[1755764969746,17.96572435,186.24,186.18,0.71]
[1755764970059,13.59559401,186.25,186.18,0.71]
[1755764970660,0.66,186.24,186.18,44.25]
[1755764973172,13.59559401,186.25,186.19,0.71]
[1755764973465,13.59559401,186.25,186.19,44.19]
[1755764973851,3.49609507,186.24,186.2,0.71]
[1755764974054,3.49609507,186.24,186.19,43.48]
[1755764974055,3.49609507,186.23,186.21,0.71]
[1755764974250,26.0,186.27,186.19,43.48]
[1755764974456,3.49667455,186.26,186.19,43.48]
[1755764974857,3.49667455,186.26,186.2,0.71]
[1755764975473,3.49667455,186.25,186.2,0.71]
[1755764975650,3.49667455,186.26,186.21,0.71]
[1755764975850,3.49667455,186.25,186.21,0.71]
[1755764976562,3.49667455,186.26,186.21,0.71]
[1755764976767,3.49667455,186.25,186.21,0.71]
[1755764977572,3.49667455,186.25,186.22,16.147698]
[1755764977958,3.49667455,186.26,186.21,0.71]
[1755764978268,4.15667455,186.25,186.21,0.71]
[1755764978458,0.66,186.25,186.21,0.71]
[1755764978659,4.15667455,186.25,186.21,0.71]
[1755764978856,0.66,186.25,186.23,16.147698]
[1755764979053,3.49667455,186.25,186.23,16.147698]
[1755764979263,26.66,186.27,186.21,0.71]
[1755764979466,3.50006346,186.26,186.24,16.147698]
[1755764979972,3.50006346,186.25,186.24,16.147698]
[1755764980269,16.45721666,186.29,186.24,16.857698]
[1755764980270,0.06,186.29,186.24,16.857698]
[1755764980461,3.50208645,186.28,186.25,0.71]
[1755764980764,0.06,186.29,186.25,0.71]
[1755764980973,4.16213595,186.28,186.25,43.34]
[1755764981270,4.16213595,186.27,186.25,43.34]
[1755764981472,0.72,186.29,186.25,43.34]
[1755764981667,3.50340201,186.28,186.25,43.34]
[1755764981978,3.50340201,186.27,186.25,44.05]
[1755764982153,0.06,186.29,186.25,44.05]
[1755764982356,3.50450391,186.28,186.25,44.05]
[1755764982578,0.06,186.29,186.25,44.05]
[1755764982877,0.06,186.29,186.26,0.71]
[1755764983577,0.06,186.29,186.27,0.71]
[1755764984380,0.06,186.29,186.28,0.71]
[1755764987900,0.06,186.29,186.28,75.60258597]
[1755764990682,0.06,186.29,186.28,89.19817998]
[1755764990858,0.06,186.29,186.28,96.81468379]
[1755764993371,0.06,186.31,186.29,13.87991715]
[1755764993563,0.06,186.31,186.29,14.56991715]
[1755764993756,0.06,186.31,186.3,14.28559401]
[1755764994263,0.06,186.31,186.3,13.87991715]
[1755764994465,0.06,186.31,186.3,14.56991715]
[1755764995465,0.06,186.31,186.3,22.08866167]
[1755764996461,0.06,186.33,186.32,39.87991715]
[1755764996680,0.06,186.33,186.32,83.03991715]
[1755764996880,0.06,186.33,186.32,83.72991715]
[1755764997094,0.06,186.33,186.32,85.88074315]
[1755764997658,0.06,186.33,186.32,91.24785349]
[1755764998391,0.06,186.33,186.32,48.08785349]
[1755764998590,0.06,186.33,186.32,91.16785349]
[1755765000495,0.2,186.46,186.41,0.28432314]
[1755765000703,0.86,186.46,186.45,26.0]
[1755765000877,0.86,186.46,186.45,69.08]
[1755765001080,0.86,186.46,186.45,71.229902]
[1755765001500,0.86,186.46,186.45,45.229902]
[1755765002610,0.2,186.46,186.45,50.87759333]
[1755765002782,0.2,186.46,186.45,51.56759333]
[1755765002983,0.2,186.46,186.45,50.87759333]
[1755765003883,0.2,186.46,186.45,51.56759333]
[1755765004209,0.2,186.46,186.45,65.16318734]
[1755765006411,0.2,186.46,186.45,64.47318734]
[1755765006617,0.2,186.46,186.45,2.43422514]
[1755765006911,0.2,186.46,186.45,50.79759333]
[1755765007504,0.86,186.46,186.45,50.79759333]
[1755765008294,0.86,186.46,186.45,2.43422514]
[1755765008489,0.86,186.46,186.45,71.129902]
[1755765008900,0.86,186.46,186.45,71.109902]
[1755765009303,0.2,186.46,186.45,77.30543176]
[1755765009518,0.2,186.46,186.45,75.29769133]
[1755765010014,0.2,186.46,186.45,76.75724633]
[1755765011218,0.2,186.46,186.45,91.04284034]
[1755765012331,0.2,186.46,186.45,90.35284034]
[1755765012700,0.2,186.46,186.45,33.79724633]
[1755765012901,0.2,186.46,186.45,76.71724633]
[1755765013114,0.2,186.46,186.45,33.79724633]
[1755765013306,0.2,186.46,186.45,76.71724633]
[1755765013618,0.2,186.46,186.45,77.40724633]
[1755765013830,0.86,186.46,186.45,33.79724633]
[1755765014127,0.86,186.46,186.45,76.71724633]
[1755765014427,0.86,186.46,186.45,2.149555]
[1755765014727,0.86,186.46,186.45,42.92]
[1755765016408,0.86,186.46,186.43,2.149902]
[1755765016614,0.66,186.45,186.42,26.0]
[1755765016925,0.66,186.45,186.43,42.9]
[1755765017325,0.2,186.46,186.43,42.9]
[1755765017628,0.66,186.44,186.43,42.9]
[1755765018199,0.2,186.46,186.45,26.0]
[1755765018417,0.2,186.46,186.45,68.88]
[1755765018604,0.2,186.46,186.45,69.16432314]
[1755765019018,0.2,186.46,186.45,71.31399414]
[1755765019204,0.2,186.46,186.45,76.67736233]
[1755765024032,0.2,186.46,186.45,77.27736233]
[1755765024238,0.2,186.46,186.45,76.59736233]
[1755765026515,0.2,186.46,186.45,76.59736233]
[1755765027335,0.86,186.46,186.45,42.76]
[1755765028008,0.2,186.46,186.45,48.12336819]
[1755765028641,0.2,186.46,186.45,49.08769133]
[1755765028827,0.2,186.46,186.45,64.83272534]
[1755765034622,0.2,186.46,186.45,64.15272534]
[1755765035341,0.2,186.46,186.45,64.83272534]
[1755765037125,0.2,186.46,186.45,22.07272534]
[1755765037315,0.2,186.46,186.45,64.67272534]
[1755765037946,0.06,186.48,186.47,13.59559401]
[1755765038150,0.06,186.48,186.47,56.47991715]
[1755765038353,1e-08,186.48,186.47,57.69619644]
[1755765038726,1e-08,186.48,186.47,73.81619644]
[1755765039048,1e-08,186.48,186.47,83.81619644]
[1755765039220,1e-08,186.48,186.47,85.96494344]
[1755765039860,1e-08,186.48,186.47,81.32773638]
[1755765040147,1e-08,186.48,186.47,91.32773638]
[1755765041435,1e-08,186.5,186.48,13.87991715]
[1755765041633,1e-08,186.5,186.49,42.84432314]
[1755765041870,1e-08,186.5,186.49,48.88654095]
[1755765042428,1e-08,186.5,186.49,51.03528795]
[1755765042959,1e-08,186.5,186.49,50.35528795]
[1755765043258,1e-08,186.5,186.49,63.93088196]
[1755765043933,1e-08,186.5,186.49,21.39088196]
[1755765044132,0.66000001,186.5,186.49,50.33528795]
[1755765044455,0.66000001,186.5,186.49,50.05096481]
[1755765044945,0.66000001,186.5,186.49,50.19312638]
[1755765045119,1e-08,186.5,186.49,63.93088196]
[1755765045523,1e-08,186.5,186.49,64.61088196]
[1755765045737,1e-08,186.5,186.49,63.93088196]
[1755765047965,1e-08,186.5,186.49,64.61088196]
[1755765049565,1e-08,186.5,186.49,48.07088196]
[1755765049765,1e-08,186.5,186.49,63.89088196]
[1755765050171,1e-08,186.5,186.49,64.57088196]
[1755765050372,1e-08,186.5,186.49,63.89088196]
[1755765050750,1e-08,186.5,186.49,64.57088196]
[1755765056554,1e-08,186.5,186.49,47.39088196]
[1755765056764,0.72000001,186.5,186.49,63.79088196]
[1755765057078,1e-08,186.5,186.49,63.79088196]
[1755765057796,1e-08,186.5,186.49,64.47088196]
[1755765058000,1e-08,186.5,186.49,63.79088196]
[1755765059414,1e-08,186.5,186.49,64.47088196]
[1755765059891,1e-08,186.5,186.49,63.79088196]
[1755765060267,0.72000001,186.5,186.49,21.10655882]
[1755765060583,0.72000001,186.5,186.49,7.51096481]
[1755765060786,0.72000001,186.5,186.49,49.89096481]
[1755765061161,0.72000001,186.5,186.49,2.148747]
[1755765061364,0.72000001,186.5,186.49,70.528747]
[1755765061575,0.72000001,186.5,186.49,75.89096481]
[1755765061788,1e-08,186.5,186.49,76.17528795]
[1755765061977,0.72000001,186.5,186.49,70.69090857]
[1755765062290,0.72000001,186.5,186.49,70.83307014]
[1755765062465,0.72000001,186.5,186.49,76.19528795]
[1755765065393,0.72000001,186.5,186.49,155.99528795]
[1755765065889,0.72000001,186.5,186.49,107.948747]
[1755765066092,0.72000001,186.5,186.49,148.16]
[1755765066393,0.72000001,186.5,186.47,2.179556]
[1755765066611,0.72000001,186.5,186.47,0.03]
[1755765067069,0.72000001,186.5,186.47,42.43]
[1755765067271,13.59559401,186.49,186.45,0.03]
[1755765067476,0.72,186.48,186.45,0.03]
[1755765069002,13.59559401,186.47,186.45,0.03]
[1755765069376,0.72,186.46,186.45,0.03]
[1755765069572,14.31559401,186.46,186.45,0.03]
[1755765069779,14.59991715,186.46,186.45,0.03]
[1755765070105,18.17935858,186.46,186.45,0.03]
[1755765070472,14.59991715,186.46,186.45,0.03]
[1755765071572,18.17563319,186.46,186.45,0.03]
[1755765072601,36.21624933,186.46,186.45,0.03]
[1755765075902,32.64696819,186.46,186.45,0.03]
[1755765076080,75.12696819,186.46,186.45,0.03]
[1755765080984,77.92655298,186.46,186.45,0.03]
[1755765081904,13.59559401,186.44,186.43,0.03]
[1755765082121,23.87991715,186.44,186.43,0.03]
[1755765082280,32.64696819,186.44,186.43,0.03]
[1755765082983,22.64696819,186.44,186.43,0.03]
[1755765084286,65.12696819,186.44,186.43,0.03]
[1755765086384,75.12696819,186.44,186.43,0.03]
[1755765086704,81.63412422,186.44,186.43,0.03]
[1755765088484,85.17576877,186.44,186.43,0.03]
[1755765088881,49.59559401,186.42,186.41,0.03]
[1755765089107,67.97537073,186.42,186.41,0.03]
[1755765089305,68.63537073,186.42,186.41,0.03]
[1755765091687,111.09537073,186.42,186.41,0.03]
[1755765091903,107.55412422,186.42,186.41,0.03]
[1755765093206,107.41196265,186.42,186.41,0.03]
[1755765093502,107.55412422,186.42,186.41,0.03]
[1755765093710,107.41196265,186.42,186.41,0.03]
[1755765093912,107.55412422,186.42,186.41,0.03]
[1755765094991,107.51412422,186.42,186.41,0.03]
[1755765095603,97.51412422,186.42,186.41,0.03]
[1755765095807,96.85412422,186.42,186.41,0.03]
[1755765096004,54.43412422,186.42,186.41,0.03]
[1755765096310,90.34696819,186.42,186.41,0.03]
[1755765097887,90.32696819,186.42,186.41,0.03]
[1755765098089,39.59559401,186.35,186.34,0.68]
[1755765098301,81.99559401,186.35,186.34,0.68]
[1755765098500,56.11559401,186.35,186.34,0.68]
[1755765100512,13.59559401,186.34,186.33,0.03]
[1755765100813,13.59559401,186.34,186.33,0.71]
[1755765102113,56.07559401,186.34,186.33,0.71]
[1755765102325,56.07559401,186.34,186.33,0.03]
[1755765103026,56.07559401,186.34,186.33,0.71]
[1755765104306,56.07559401,186.34,186.33,0.03]
[1755765104508,57.01991715,186.34,186.33,0.03]
[1755765106528,60.57450158,186.34,186.33,0.03]
[1755765107132,70.57450158,186.34,186.33,0.03]
[1755765107422,78.62155262,186.34,186.33,0.03]
[1755765109414,83.0316069,186.34,186.33,0.03]
[1755765109734,83.0316069,186.34,186.29,0.03]
[1755765109735,23.87991715,186.3,186.29,0.03]
[1755765110032,77.90155262,186.3,186.29,0.03]
[1755765110325,78.56155262,186.3,186.29,0.03]
[1755765110524,83.01410773,186.3,186.29,0.03]
[1755765110705,83.02157608,186.3,186.29,0.03]
[1755765111414,78.56901614,186.3,186.29,0.03]
[1755765112425,84.37372772,186.3,186.29,0.03]
[1755765113955,67.624693,186.3,186.29,0.03]
[1755765114109,67.90901614,186.3,186.29,0.03]
[1755765114306,67.76685457,186.3,186.29,0.03]
[1755765114636,67.90901614,186.3,186.29,0.03]
[1755765116045,68.62901614,186.3,186.29,0.03]
[1755765117110,67.90901614,186.3,186.29,0.03]
[1755765117518,68.62901614,186.3,186.29,0.03]
[1755765118205,67.90901614,186.3,186.29,0.03]
[1755765119325,93.82901614,186.3,186.29,0.03]
[1755765120224,51.48901614,186.3,186.29,0.03]
[1755765120531,85.7819651,186.3,186.29,0.7]
[1755765120760,13.59559401,186.3,186.29,0.7]
[1755765121235,13.59559401,186.34,186.29,0.7]
[1755765121416,13.59559401,186.32,186.29,0.7]
[1755765121625,42.36,186.31,186.29,0.7]
[1755765122720,2.80030534,186.36,186.29,0.7]
[1755765122939,55.93559401,186.35,186.29,0.7]
[1755765123142,13.59559401,186.35,186.29,0.7]
[1755765123322,42.34,186.34,186.29,0.7]
[1755765124646,13.59559401,186.39,186.29,0.7]
[1755765124847,13.59559401,186.37,186.29,0.7]
[1755765125150,42.32,186.36,186.29,0.7]
[1755765125348,42.32,186.35,186.29,0.7]
[1755765127539,42.32,186.35,186.29,16.839879]
[1755765127730,42.32,186.35,186.3,0.67]
[1755765127933,42.28,186.34,186.3,0.67]
[1755765128233,2.79987964,186.38,186.3,0.67]
[1755765128551,0.06,186.41,186.32,26.0]
[1755765128726,42.26,186.4,186.33,0.67]
[1755765130728,42.26,186.4,186.33,16.806407]
[1755765131052,42.26,186.4,186.34,0.67]
[1755765131643,13.65559401,186.41,186.34,0.67]
[1755765131843,42.32,186.41,186.36,26.0]
[1755765132048,0.06,186.41,186.37,0.67]
[1755765132855,0.06,186.41,186.38,26.0]
[1755765133147,0.06,186.41,186.39,0.67]
[1755765133752,0.06,186.41,186.4,26.0]
[1755765134239,0.06,186.41,186.4,26.67]
[1755765134435,0.06,186.41,186.29,0.03]
[1755765134436,13.59559401,186.37,186.29,0.03]
[1755765134635,0.28432314,186.32,186.29,0.03]
[1755765134866,26.0,186.34,186.29,0.03]
[1755765134867,13.87991715,186.3,186.29,0.03]
[1755765135231,13.59559401,186.3,186.29,0.03]
[1755765135786,14.50991715,186.3,186.29,0.03]
[1755765137357,57.80991715,186.3,186.29,0.03]
[1755765137939,57.17991715,186.3,186.29,0.03]
[1755765138136,57.15991715,186.3,186.29,0.03]
[1755765138822,13.87991715,186.3,186.29,0.03]
[1755765139026,57.15991715,186.3,186.29,0.03]
[1755765139854,13.87991715,186.3,186.29,0.03]
[1755765140155,57.15991715,186.3,186.29,0.03]
[1755765140658,56.87559401,186.3,186.29,0.03]
[1755765140971,56.85559401,186.3,186.29,0.03]
[1755765144468,43.2,186.3,186.29,0.73]
[1755765145182,0.06,186.31,186.29,0.73]
[1755765145573,0.06,186.31,186.29,2.912447]
[1755765145976,0.06,186.31,186.3,0.7]
[1755765146674,0.06,186.31,186.3,16.839879]
[1755765150377,0.06,186.31,186.3,22.20756552]
[1755765154466,0.06,186.31,186.3,22.49188866]
[1755765155491,0.06,186.31,186.3,36.08748267]
[1755765156101,0.06,186.31,186.3,115.88748267]
[1755765157688,0.06,186.31,186.3,158.86748267]
[1755765159586,0.06,186.31,186.3,102.00756552]
[1755765159977,0.06,186.31,186.3,16.839879]
[1755765162209,0.06,186.31,186.3,42.839879]
[1755765162792,0.06,186.31,186.3,42.139879]
[1755765164990,0.69,186.31,186.3,26.0]
[1755765165397,0.69,186.31,186.29,2.181984]
[1755765165599,0.69,186.31,186.29,0.03]
[1755765165924,0.63,186.3,186.29,0.03]
[1755765166284,0.06,186.31,186.29,0.03]
[1755765166497,0.06,186.31,186.29,2.1821]
[1755765170824,0.60565845,186.33,186.29,2.1821]
[1755765170999,0.06,186.35,186.29,2.1821]
[1755765172799,0.61,186.34,186.29,2.1821]
[1755765173414,0.61,186.34,186.29,2.8921]
[1755765174618,0.61,186.34,186.3,0.71]
[1755765174998,0.61,186.34,186.29,28.1821]
[1755765175403,0.61,186.34,186.29,28.8921]
[1755765176015,0.61,186.33,186.29,2.8921]
[1755765176416,0.06,186.35,186.29,2.1821]
[1755765176604,0.61,186.34,186.29,2.8921]
[1755765176811,0.61,186.33,186.29,0.03]
[1755765178231,0.61,186.32,186.29,0.03]
[1755765178832,0.61,186.31,186.29,0.03]
[1755765179202,14.20559401,186.34,186.29,0.74]
[1755765179922,0.61,186.33,186.29,0.74]
[1755765180127,13.59559401,186.34,186.29,0.03]
[1755765180298,0.67,186.35,186.29,0.74]
[1755765180299,42.74,186.35,186.29,0.74]
[1755765180708,42.74,186.35,186.3,5.398519]
[1755765180912,42.74,186.35,186.31,0.71]
[1755765181622,43.35,186.35,186.31,0.71]
[1755765182306,43.35,186.35,186.3,5.398519]
[1755765182503,43.35,186.35,186.3,6.108519]
[1755765182701,42.74,186.35,186.31,0.71]
[1755765182921,42.74,186.35,186.29,0.03]
[1755765183119,42.74,186.35,186.31,0.71]
[1755765183339,42.7,186.35,186.31,0.71]
[1755765183615,42.7,186.35,186.32,0.71]
[1755765184405,42.7,186.35,186.33,0.71]